bitfinex/quotes_ETHUSD_20250731
["timestamp","ask_amount","ask_price","bid_price","bid_amount"]
[1753949107452,0.24125417,3865.8,3865.7,0.001]
[1753949108143,0.24125417,3865.8,3865.7,0.9416]
[1753949109832,0.24125417,3865.8,3865.7,3.5284536]
[1753949110333,0.24125417,3865.8,3865.7,4.62172107]
[1753949110543,0.24125417,3866.2,3866.0,2.5866509]
[1753949110711,0.24103528,3866.1,3866.0,5.75783904]
[1753949111043,0.24103227,3866.1,3866.0,4.81723904]
[1753949111346,0.24103227,3866.1,3865.8,0.9406]
[1753949111531,0.4722,3866.3,3865.8,0.9406]
[1753949111738,3.56664783,3866.6,3865.8,0.9406]
[1753949111739,0.71321507,3866.2,3865.8,0.9406]
[1753949111914,0.4722,3866.2,3865.8,0.9406]
[1753949112115,0.4383,3866.5,3865.8,0.9406]
[1753949112315,0.4722,3866.4,3865.9,2.58667086]
[1753949112546,0.4722,3866.4,3865.9,3.52727086]
[1753949112751,0.4722,3866.4,3865.9,0.9406]
[1753949113048,0.9105,3866.3,3865.7,0.001]
[1753949113209,0.24098627,3866.2,3865.7,0.001]
[1753949113414,0.9105,3866.2,3865.7,0.001]
[1753949113626,0.6792941,3866.1,3865.7,0.001]
[1753949113845,0.2409941,3866.0,3865.7,0.001]
[1753949114064,0.2409941,3865.9,3865.7,0.001]
[1753949114347,0.4383,3866.1,3865.7,0.001]
[1753949114526,0.4722,3865.9,3865.7,0.001]
[1753949116952,0.4722,3865.9,3865.7,2.58784757]
[1753949117134,0.4722,3865.9,3865.7,0.001]
[1753949117664,0.7617,3866.5,3865.8,5.75783904]
[1753949117831,0.24094497,3866.4,3866.1,4.81723904]
[1753949118037,0.24094497,3866.3,3865.9,3.06496549]
[1753949118251,0.24094497,3866.2,3865.9,3.06496549]
[1753949118567,0.24094497,3866.1,3865.9,3.04896549]
[1753949118860,0.24094497,3866.0,3865.9,3.04896549]
[1753949119573,0.4722,3866.3,3866.0,2.58664897]
[1753949119719,0.24095662,3866.2,3866.0,2.58664897]
[1753949119924,0.24095662,3866.2,3865.9,3.04900047]
[1753949120137,0.24095662,3866.1,3866.0,2.58665287]
[1753949120469,0.24095662,3866.1,3866.0,0.9406]
[1753949120773,0.24095662,3866.1,3865.9,2.58670055]
[1753949120974,0.24095662,3866.0,3865.9,2.58670055]
[1753949121272,0.24095662,3866.0,3865.9,3.04900055]
[1753949121441,0.24095662,3866.0,3865.9,0.4623]
[1753949121672,0.24095662,3866.0,3865.9,3.04901978]
[1753949123523,0.4722,3866.6,3866.1,2.58656709]
[1753949123756,0.24102765,3866.5,3866.1,7.40380613]
[1753949123959,0.24102765,3866.4,3866.1,7.86610613]
[1753949124178,0.24102765,3866.3,3866.1,7.86610613]
[1753949124329,0.24102765,3866.2,3866.1,9.50230214]
[1753949124539,0.24102765,3866.2,3866.1,9.04000214]
[1753949125882,0.71322765,3866.2,3866.1,1.63619601]
[1753949126086,0.71322765,3866.2,3866.0,3.942]
[1753949126242,0.24102765,3866.1,3866.0,6.52865287]
[1753949127085,0.24102765,3866.1,3866.0,3.942]
[1753949128774,0.24102765,3866.1,3866.0,3.941]
[1753949128976,0.24117901,3866.1,3865.8,4.81723904]
[1753949129154,0.24117901,3866.0,3865.9,4.77566675]
[1753949129789,0.24117901,3866.0,3865.9,7.36236161]
[1753949131069,0.24117901,3866.0,3865.9,7.82466161]
[1753949131691,0.24117901,3866.0,3865.9,7.36236161]
[1753949132753,0.71337901,3866.0,3865.9,0.83466675]
[1753949132965,0.71337901,3866.0,3865.9,3.94]
[1753949134473,0.71346773,3866.0,3865.9,3.94]
[1753949135513,1.15006773,3866.0,3865.9,3.939]
[1753949137278,1.15006773,3866.0,3865.7,0.001]
[1753949137495,1.16906773,3865.9,3865.7,3.94]
[1753949137694,0.24126773,3865.8,3865.7,3.94]
[1753949137900,1.16906773,3865.8,3865.7,3.94]
[1753949139270,1.97816773,3865.8,3865.7,0.001]
[1753949139478,0.4390845,3865.8,3865.7,0.001]
[1753949139672,0.73258027,3865.8,3865.7,0.001]
[1753949139883,1.16918027,3865.8,3865.7,0.001]
[1753949140285,1.97822631,3865.8,3865.7,0.001]
[1753949141077,2.52822631,3865.8,3865.7,0.001]
[1753949141310,1.97822631,3865.8,3865.7,0.001]
[1753949141618,5.57150794,3865.8,3865.7,0.001]
[1753949141934,12.51945894,3865.8,3865.7,0.001]
[1753949142503,6.9501536,3865.7,3865.6,1e-08]
[1753949142703,12.06923091,3865.7,3865.6,1e-08]
[1753949142907,12.31041313,3865.7,3865.6,1e-08]
[1753949143223,12.31041313,3865.7,3865.1,0.04]
[1753949143224,6.13718824,3865.2,3865.1,0.04]
[1753949143377,41.14476555,3865.2,3865.1,0.04]
[1753949143574,42.07256555,3865.2,3865.1,0.04]
[1753949143780,3.40115777,3864.2,3864.1,0.04]
[1753949144289,0.8223,3864.4,3864.1,0.04]
[1753949144608,0.4912,3864.2,3864.1,0.04]
[1753949144799,4.4522,3864.3,3864.1,0.04]
[1753949145000,0.4912,3865.2,3864.2,4.86523904]
[1753949145307,0.4912,3865.2,3864.1,0.04]
[1753949145308,3.0,3864.6,3864.1,0.04]
[1753949145516,3.0,3864.7,3864.1,0.04]
[1753949145677,3.0,3864.9,3864.2,4.81723904]
[1753949145873,4.3135,3865.0,3864.2,4.81723904]
[1753949146073,3.4912,3864.8,3864.1,0.04]
[1753949146304,2.58758246,3864.7,3864.1,0.04]
[1753949146807,0.4912,3864.6,3864.1,0.04]
[1753949147174,0.9278,3864.5,3864.4,4.81723904]
[1753949147890,0.4912,3864.5,3864.4,4.81723904]
[1753949148095,4.4562,3864.8,3864.4,4.81723904]
[1753949148318,3.965,3864.8,3864.4,4.81723904]
[1753949148490,0.4912,3864.7,3864.4,4.81723904]
[1753949149921,0.24051845,3864.6,3864.4,4.81723904]
[1753949150119,0.4912,3864.7,3864.4,4.81723904]
[1753949150324,0.24042909,3864.6,3864.4,4.81723904]
[1753949150825,0.24041926,3864.5,3864.4,5.28493904]
[1753949151026,0.24041926,3864.7,3864.4,4.81723904]
[1753949151321,0.24041926,3864.6,3864.4,4.81723904]
[1753949151927,0.4912,3864.5,3864.2,4.81723904]
[1753949152094,0.24041926,3864.4,3864.2,4.81723904]
[1753949152425,0.73142285,3864.3,3864.2,4.81723904]
[1753949152729,0.4366,3864.5,3864.2,4.81723904]
[1753949152932,0.24023472,3864.4,3864.2,4.81723904]
[1753949153115,0.73143472,3864.4,3864.2,4.81723904]
[1753949153316,0.4912,3864.4,3864.2,4.81723904]
[1753949155404,3.02412767,3864.7,3864.2,4.81723904]
[1753949155619,3.0,3864.8,3864.5,4.81723904]
[1753949155794,0.73130722,3864.7,3864.5,4.81723904]
[1753949155993,0.4912,3864.7,3864.5,4.81723904]
[1753949156194,0.4912,3864.6,3864.5,4.81723904]
[1753949156933,3.4366,3864.8,3864.5,4.81723904]
[1753949157108,0.7312845,3864.7,3864.5,4.81723904]
[1753949157313,0.95286111,3865.0,3864.5,4.81723904]
[1753949157491,3.964,3864.8,3864.5,4.81723904]
[1753949157948,0.62643621,3865.3,3864.6,0.9915]
[1753949158110,0.73128723,3865.2,3864.8,4.81723904]
[1753949158312,0.24008723,3865.1,3864.8,4.81723904]
[1753949158506,3.13523621,3865.3,3864.8,4.81723904]
[1753949158713,3.13523621,3865.3,3865.1,4.81723904]
[1753949158714,4.20910254,3865.2,3865.1,4.81723904]
[1753949159124,0.24010254,3865.2,3865.1,4.81723904]
[1753949161246,0.24010254,3865.2,3865.1,5.28493904]
[1753949161910,0.24010254,3865.4,3865.1,5.28493904]
[1753949162230,0.73130254,3865.4,3865.1,4.81723904]
[1753949162540,0.002,3865.2,3865.1,4.81723904]
[1753949165108,0.002,3865.2,3865.1,5.29143904]
[1753949165309,0.002,3865.2,3865.1,5.76053904]
[1753949165517,0.002,3865.2,3865.1,4.81723904]
[1753949167409,0.24210254,3865.2,3865.1,4.81723904]
[1753949168260,0.24210254,3865.2,3865.1,5.28633904]
[1753949168402,0.24273035,3865.2,3865.1,5.28633904]
[1753949168602,0.24273035,3865.2,3865.1,5.76053904]
[1753949169320,0.24273035,3865.2,3865.1,5.28633904]
[1753949170005,0.002,3865.2,3865.1,4.81723904]
[1753949170508,0.24285358,3865.2,3865.1,4.81723904]
[1753949170708,0.002,3865.2,3865.1,4.81723904]
[1753949171120,0.24285358,3865.2,3865.1,4.81723904]
[1753949174291,0.002,3865.2,3865.1,4.81723904]
[1753949174653,0.24299246,3865.2,3865.1,4.81723904]
[1753949175402,0.002,3865.2,3865.1,4.81723904]
[1753949175852,0.24299221,3865.2,3865.1,4.81723904]
[1753949176325,0.002,3865.2,3865.1,4.81723904]
[1753949176658,0.24299197,3865.2,3865.1,4.81723904]
[1753949177337,0.002,3865.2,3865.1,4.81723904]
[1753949177852,0.24299197,3865.2,3865.1,7.40449422]
[1753949178080,0.24299197,3865.2,3865.1,7.87869422]
[1753949178275,0.24299197,3865.2,3865.1,8.34779422]
[1753949178455,0.002,3865.2,3865.1,9.84221215]
[1753949181532,0.002,3865.2,3865.1,9.89021215]
[1753949190014,0.24106064,3865.5,3865.4,2.58705437]
[1753949190185,0.002,3865.6,3865.5,2.58698745]
[1753949190892,0.2430465,3865.6,3865.5,3.53028745]
[1753949191072,0.2430465,3865.6,3865.5,4.54464554]
[1753949191404,0.002,3865.6,3865.5,4.07554554]
[1753949191994,0.2430465,3865.6,3865.5,4.07554554]
[1753949192818,0.7289465,3865.6,3865.5,1.48855809]
[1753949193109,0.7289465,3865.6,3865.5,4.07554554]
[1753949193813,0.72898606,3865.6,3865.5,4.07554554]
[1753949194188,0.72898606,3865.6,3865.5,1.48855809]
[1753949194389,0.72898606,3865.6,3865.5,4.07554554]
[1753949196216,0.24308606,3865.6,3865.5,4.07554554]
[1753949196916,0.002,3865.6,3865.5,4.99194554]
[1753949200776,0.002,3865.6,3865.5,5.03994554]
[1753949205514,0.002,3866.3,3866.2,2.58651906]
[1753949205704,0.24317364,3866.3,3866.2,11.3477581]
[1753949206317,0.24317364,3866.3,3866.2,12.2641581]
[1753949206713,0.24317364,3866.3,3866.2,11.7949581]
[1753949206894,0.24317364,3866.3,3866.2,13.23791362]
[1753949207229,0.002,3866.7,3866.6,2.58625148]
[1753949207527,0.4998,3866.7,3866.6,6.52925148]
[1753949208643,0.9622,3866.7,3866.6,6.52925148]
[1753949210550,0.002,3866.7,3866.6,6.52825148]
[1753949210761,0.002,3866.7,3866.6,7.92143814]
[1753949211340,0.4998,3866.7,3866.6,7.92143814]
[1753949212052,0.9622,3866.7,3866.6,7.92143814]
[1753949212406,0.002,3866.7,3866.6,7.92143814]
[1753949212842,0.4998,3866.7,3866.6,7.92143814]
[1753949213008,0.9622,3866.7,3866.6,7.92143814]
[1753949214346,0.9622,3866.7,3866.6,6.52825148]
[1753949214549,0.9622,3866.7,3866.6,3.942]
[1753949215537,0.9622,3866.7,3866.6,6.52825148]
[1753949215731,0.4998,3866.7,3866.6,6.52825148]
[1753949219254,0.74059755,3866.7,3866.6,6.52825148]
[1753949220352,0.24279755,3866.7,3866.6,6.52825148]
[1753949220789,0.24281831,3866.7,3866.6,6.52825148]
[1753949221085,0.002,3866.7,3866.6,6.52825148]
[1753949221250,0.4998,3866.7,3866.6,6.52825148]
[1753949221446,0.74061831,3866.7,3866.6,6.52825148]
[1753949222287,0.24281831,3866.7,3866.6,6.52825148]
[1753949222451,0.002,3866.7,3866.6,6.52825148]
[1753949224116,0.002,3866.7,3866.6,8.47467799]
[1753949224314,0.002,3866.7,3866.6,8.01307799]
[1753949225109,0.04,3866.9,3866.8,2.58611772]
[1753949225306,0.04,3866.9,3866.8,6.52111772]
[1753949225697,0.04,3866.9,3866.8,6.98271772]
[1753949225895,0.04,3866.9,3866.8,8.6220312]
[1753949226094,0.04,3866.9,3866.8,13.91337024]
[1753949227629,0.04,3866.9,3866.8,13.96137024]
[1753949231539,0.04,3866.9,3866.8,4.2734312]
[1753949231740,0.9567,3866.9,3866.6,4.81723904]
[1753949232045,0.9167,3866.8,3866.6,4.81723904]
[1753949232200,0.7809,3866.8,3866.7,3.937]
[1753949232841,0.7809,3866.8,3866.6,4.81723904]
[1753949233136,0.7809,3866.8,3866.7,3.937]
[1753949233829,1.6976,3866.8,3866.7,3.937]
[1753949238147,0.9167,3866.8,3866.7,3.937]
[1753949240754,0.04,3866.9,3866.7,5.07105308]
[1753949241051,0.04,3866.9,3866.8,2.58611772]
[1753949242916,0.4838,3867.2,3866.8,2.58611772]
[1753949242917,0.002,3867.5,3867.2,2.58584484]
[1753949243243,0.002,3867.5,3867.4,4.81723904]
[1753949243426,0.002,3867.5,3867.4,7.40295554]
[1753949243629,0.002,3867.5,3867.4,8.79513545]
[1753949243830,0.002,3867.5,3867.4,8.3830524]
[1753949246233,0.24290291,3867.5,3867.4,8.3830524]
[1753949247330,0.72670291,3867.5,3867.4,6.99087249]
[1753949248060,0.72670291,3867.5,3867.3,3.933]
[1753949248061,0.24290291,3867.5,3867.3,3.933]
[1753949248258,0.72470291,3867.4,3867.3,6.51878132]
[1753949248425,0.72470291,3867.4,3867.3,11.33602036]
[1753949248632,0.002,3867.5,3867.4,2.5857165]
[1753949248831,0.24297909,3867.5,3867.4,2.5857165]
[1753949250560,0.24297909,3867.5,3867.4,3.39369343]
[1753949250746,0.002,3867.5,3867.4,4.37739343]
[1753949253366,0.002,3867.5,3867.4,3.90329343]
[1753949253543,0.28315888,3867.9,3867.8,2.58544909]
[1753949253740,0.28315888,3867.9,3867.8,11.33968813]
[1753949253938,0.042,3867.9,3867.8,13.74992977]
[1753949254152,0.042,3867.9,3867.8,13.28072977]
[1753949254475,0.042,3867.9,3867.8,13.74992977]
[1753949254768,0.042,3867.9,3867.8,13.29392977]
[1753949254973,0.042,3867.9,3867.8,12.82472977]
[1753949255942,0.042,3867.9,3867.8,13.74992977]
[1753949259651,0.042,3867.9,3867.8,12.82472977]
[1753949259945,0.9473,3867.9,3867.8,3.935]
[1753949260570,0.9473,3867.9,3867.3,4.81723904]
[1753949260775,0.7825,3867.8,3867.4,3.936]
[1753949261080,0.9053,3867.7,3867.4,3.936]
[1753949261279,0.7825,3867.8,3867.4,3.936]
[1753949261577,0.9053,3867.6,3867.4,3.936]
[1753949261754,0.7825,3867.8,3867.4,3.936]
[1753949261953,0.9053,3867.7,3867.4,3.936]
[1753949262179,0.9053,3867.6,3867.4,3.936]
[1753949262385,0.7825,3867.8,3867.3,4.81723904]
[1753949262386,0.7825,3867.8,3867.5,3.938]
[1753949262888,0.7825,3867.8,3867.6,4.81723904]
[1753949263048,0.9053,3867.7,3867.6,4.81723904]
[1753949265947,1.14625045,3867.7,3867.6,4.81723904]
[1753949266585,1.14630071,3867.7,3867.6,4.81723904]
[1753949270197,1.14830071,3867.7,3867.6,4.81723904]
[1753949275313,1.14838061,3867.7,3867.6,4.81723904]
[1753949275466,0.24308061,3867.7,3867.6,4.81723904]
[1753949275665,0.002,3867.7,3867.6,4.81723904]
[1753949278127,0.002,3867.7,3867.6,7.40282183]
[1753949282710,0.002,3867.7,3867.6,8.36959782]
[1753949283285,0.4609,3867.7,3867.6,8.36959782]
[1753949283488,0.8987,3867.7,3867.6,9.71501503]
[1753949283689,0.8987,3867.7,3867.6,8.74823904]
[1753949285017,0.4609,3867.7,3867.6,8.74823904]
[1753949286526,0.8987,3867.7,3867.6,8.74823904]
[1753949287062,1.13997813,3867.7,3867.6,8.74823904]
[1753949287341,0.8987,3867.7,3867.6,8.74823904]
[1753949288320,0.24331481,3867.7,3867.6,11.33382183]
[1753949288516,0.24331481,3867.7,3867.6,12.72587506]
[1753949288517,0.002,3867.7,3867.6,12.72587506]
[1753949289128,0.002,3867.7,3867.6,10.14029227]
[1753949290408,0.002,3867.7,3867.6,12.72587506]
[1753949291622,0.002,3867.7,3867.6,12.72687506]
[1753949293007,0.002,3867.7,3867.6,10.14129227]
[1753949293223,0.4609,3867.7,3867.6,11.33482183]
[1753949294444,0.70236156,3867.7,3867.6,8.74923904]
[1753949294873,1.94986156,3867.7,3867.6,0.001]
[1753949295028,8.45377412,3867.7,3867.6,0.001]
[1753949296059,8.08537749,3867.7,3867.6,0.001]
[1753949298535,12.01937749,3867.7,3867.6,0.001]
[1753949299337,12.26075688,3867.7,3867.6,0.001]
[1753949300034,12.26060091,3867.7,3867.6,0.001]
[1753949302269,12.26048172,3867.7,3867.6,0.001]
[1753949302771,12.38805826,3867.7,3867.6,0.001]
[1753949303542,12.38779971,3867.7,3867.6,0.001]
[1753949304481,12.14667887,3867.7,3867.6,0.001]
[1753949305194,12.38776504,3867.7,3867.6,0.001]
[1753949305369,12.14667887,3867.7,3867.6,0.001]
[1753949306695,5.07716294,3867.7,3867.6,0.001]
[1753949306870,8.57036294,3867.7,3867.6,0.001]
[1753949307070,11.15587887,3867.7,3867.6,0.001]
[1753949307459,11.59367887,3867.7,3867.6,0.001]
[1753949308502,9.00816294,3867.7,3867.6,0.001]
[1753949308807,11.59367887,3867.7,3867.6,0.001]
[1753949309499,9.00816294,3867.7,3867.6,0.001]
[1753949309737,5.57036294,3867.7,3867.6,0.001]
[1753949310394,5.11146294,3867.7,3867.6,0.001]
[1753949310796,5.57036294,3867.7,3867.6,0.001]
[1753949311024,0.24309778,3867.7,3867.6,0.001]
[1753949311207,0.24309778,3867.7,3867.6,0.9134]
[1753949311406,0.24313514,3867.7,3867.6,0.9134]
[1753949311619,0.24313514,3867.7,3867.6,1.4865639]
[1753949313333,0.24313514,3867.7,3867.6,0.001]
[1753949313641,2.33435289,3867.7,3867.6,0.001]
[1753949313944,0.24313514,3867.7,3867.6,0.4479]
[1753949314938,0.24313514,3867.7,3867.6,0.001]
[1753949317436,0.24324189,3867.7,3867.6,0.001]
[1753949317732,0.69994189,3867.7,3867.6,0.001]
[1753949317932,0.24324189,3867.7,3867.6,0.001]
[1753949319751,0.24336493,3867.7,3867.6,0.001]
[1753949321654,0.24336493,3867.7,3867.6,0.9348]
[1753949323460,0.24355491,3867.7,3867.6,0.9348]
[1753949323663,0.24355491,3867.7,3867.6,2.02724389]
[1753949324160,0.24355491,3867.7,3867.6,1.09344389]
[1753949324362,0.24355491,3867.7,3867.6,0.4479]
[1753949325069,0.24355491,3867.7,3867.6,0.001]
[1753949328364,11.42757084,3867.7,3867.6,0.001]
[1753949328577,11.66908951,3867.7,3867.6,0.001]
[1753949329596,11.66906313,3867.7,3867.6,0.001]
[1753949330496,11.66905925,3867.7,3867.6,0.001]
[1753949331290,12.21905925,3867.7,3867.6,0.001]
[1753949334873,12.34603315,3867.7,3867.6,0.001]
[1753949338608,11.4355725,3867.7,3867.6,0.001]
[1753949338814,11.8922725,3867.7,3867.6,0.001]
[1753949338980,12.34571587,3867.7,3867.6,0.001]
[1753949343495,3.61169994,3867.7,3867.6,0.001]
[1753949343705,9.8848568,3867.7,3867.6,0.001]
[1753949344012,7.29929743,3867.7,3867.6,0.001]
[1753949346913,7.29934165,3867.7,3867.6,0.001]
[1753949352399,10.37415758,3867.7,3867.6,0.001]
[1753949354140,10.61568441,3867.7,3867.6,0.001]
[1753949354339,11.05908441,3867.7,3867.6,0.001]
[1753949354634,12.76700216,3867.7,3867.6,0.001]
[1753949360341,12.52563441,3867.7,3867.6,0.001]
[1753949360650,12.76763634,3867.7,3867.6,0.001]
[1753949360858,11.2021543,3867.7,3867.6,0.001]
[1753949361156,11.93321878,3867.7,3867.6,0.001]
[1753949361325,11.69145441,3867.7,3867.6,0.001]
[1753949361660,7.0579739,3867.7,3867.6,0.001]
[1753949361863,7.54150048,3867.7,3867.6,0.001]
[1753949362388,10.12701641,3867.7,3867.6,0.001]
[1753949362723,9.88525312,3867.7,3867.6,0.001]
[1753949363061,7.54148194,3867.7,3867.6,0.001]
[1753949363353,10.12699787,3867.7,3867.6,0.001]
[1753949363921,10.61629787,3867.7,3867.6,0.001]
[1753949364122,12.38369787,3867.7,3867.6,0.001]
[1753949367273,12.38373595,3867.7,3867.6,0.001]
[1753949368668,11.90018983,3867.7,3867.6,0.001]
[1753949370175,12.29120758,3867.7,3867.6,0.001]
[1753949370390,12.7749459,3867.7,3867.6,0.001]
[1753949370557,6.95224964,3867.5,3867.4,0.001]
[1753949370880,41.75600571,3867.5,3867.4,1e-08]
[1753949371065,42.29768796,3867.5,3867.4,1e-08]
[1753949371268,43.06105176,3867.5,3867.4,1e-08]
[1753949371771,6.96498336,3867.3,3867.2,0.001]
[1753949371981,12.14078456,3867.3,3867.2,0.001]
[1753949372183,12.14078456,3867.3,3867.0,0.001]
[1753949372184,36.96511709,3867.1,3867.0,0.001]
[1753949372345,42.05872893,3867.1,3867.0,1e-08]
[1753949372674,6.9653846,3866.7,3865.3,0.9369]
[1753949372873,11.76874191,3866.7,3865.4,0.4759]
[1753949373078,12.67024191,3866.7,3865.4,0.9369]
[1753949373282,12.67024191,3866.7,3865.5,0.4581]
[1753949373640,12.67024191,3866.7,3865.5,0.924]
[1753949373845,43.04258796,3866.7,3865.5,0.924]
[1753949374247,42.80086926,3866.7,3866.6,1e-08]
[1753949374488,2.58690306,3865.7,3865.3,0.924]
[1753949374693,2.58690306,3865.7,3865.1,0.041]
[1753949374694,4.17062086,3865.6,3865.4,0.924]
[1753949374846,0.24162086,3865.5,3865.1,0.041]
[1753949375155,4.17062086,3865.4,3865.1,0.041]
[1753949375355,0.24162086,3865.3,3865.1,0.041]
[1753949375555,0.24162086,3865.3,3865.2,0.924]
[1753949376280,3.929,3865.4,3865.2,0.924]
[1753949376487,3.929,3865.4,3865.1,0.041]
[1753949376780,3.929,3865.4,3865.3,0.924]
[1753949376941,4.16986271,3865.4,3865.3,0.924]
[1753949377143,3.929,3865.4,3865.3,0.924]
[1753949379156,3.93,3865.5,3865.3,0.924]
[1753949379481,3.93,3865.5,3865.4,0.924]
[1753949380880,3.93,3865.5,3865.4,0.4659]
[1753949381083,3.93,3865.5,3865.2,0.924]
[1753949381885,3.93,3865.5,3865.3,0.4659]
[1753949382645,3.93,3865.5,3865.3,0.924]
[1753949383485,6.51703652,3865.5,3865.1,0.041]
[1753949383691,6.51703652,3865.5,3865.1,0.4991]
[1753949383893,3.93,3865.5,3865.2,0.4659]
[1753949384186,6.51698977,3865.5,3865.1,0.041]
[1753949384497,6.98558977,3865.5,3865.1,0.041]
[1753949384790,4.3986,3865.5,3865.1,0.5069]
[1753949384952,4.3986,3865.5,3865.1,0.965]
[1753949385149,3.93,3865.5,3865.2,0.924]
[1753949385355,3.93,3865.5,3865.2,0.4659]
[1753949386289,6.51700189,3865.5,3865.2,0.4659]
[1753949386491,6.98560189,3865.5,3865.1,0.4991]
[1753949386789,6.98560189,3865.5,3865.1,0.041]
[1753949386790,0.4686,3865.4,3865.1,0.041]
[1753949386988,3.93,3865.3,3865.1,0.041]
[1753949387196,3.93,3865.3,3865.1,0.965]
[1753949390411,3.93,3865.3,3865.1,0.5069]
[1753949392107,3.93,3865.3,3865.2,0.924]
[1753949394013,2.71637861,3865.8,3865.2,0.924]
[1753949394313,3.93,3865.6,3865.3,0.924]
[1753949394515,0.24052371,3865.5,3865.3,0.4581]
[1753949394700,0.24052371,3865.5,3865.4,0.4659]
[1753949395013,3.93,3865.6,3865.4,0.4659]
[1753949396214,0.24071231,3865.5,3865.4,0.4659]
[1753949397980,0.24071231,3865.5,3865.3,0.4581]
[1753949398312,0.24071231,3865.5,3865.2,0.4659]
[1753949398726,0.24071231,3865.5,3865.2,0.924]
[1753949398924,0.24071231,3865.5,3865.2,0.4659]
[1753949399101,0.24071231,3865.4,3865.2,0.4659]
[1753949400000,0.24071231,3865.4,3865.1,0.041]
[1753949400141,0.24071231,3865.3,3865.1,0.041]
[1753949400352,0.24071231,3865.2,3865.1,0.5069]
[1753949401131,0.24071231,3865.2,3865.1,0.965]
[1753949402617,0.24071231,3865.2,3865.1,0.5069]
[1753949403862,0.24071231,3865.2,3865.1,0.041]
[1753949404356,0.24071231,3865.2,3865.1,0.9228]
[1753949404558,0.24071231,3865.2,3865.1,1.76034248]
[1753949404747,0.24071231,3865.2,3865.1,6.57758152]
[1753949405953,0.24071231,3865.2,3865.1,9.67378152]
[1753949406115,0.24183701,3865.2,3865.1,10.55558152]
[1753949406316,0.4687,3865.7,3865.1,5.73834248]
[1753949406512,0.24175488,3865.6,3865.1,5.73834248]
[1753949406749,0.24175488,3865.5,3865.2,0.4298]
[1753949406936,0.4687,3865.6,3865.2,0.8818]
[1753949406937,0.24175488,3865.4,3865.2,0.8818]
[1753949407257,0.24175488,3865.3,3865.2,0.8818]
[1753949407550,0.24175488,3865.3,3865.2,4.30154787]
[1753949409250,0.4687,3865.8,3865.2,4.30154787]
[1753949409456,0.4687,3865.8,3865.2,1.71435963]
[1753949409457,0.24166217,3865.7,3865.2,1.71435963]
[1753949409669,0.7519,3866.2,3865.4,4.81723904]
[1753949409670,0.24166217,3865.6,3865.4,4.81723904]
[1753949409819,0.13008172,3866.5,3865.7,2.58684864]
[1753949410024,0.2416776,3866.4,3865.9,4.81723904]
[1753949410248,0.2416776,3866.3,3865.9,4.81723904]
[1753949410449,0.2416776,3866.2,3865.9,5.69903904]
[1753949410651,0.2416776,3866.1,3865.9,5.69903904]
[1753949410838,0.2416776,3866.0,3865.9,5.45211103]
[1753949411030,0.2416776,3866.0,3865.9,5.31723904]
[1753949411589,0.2416776,3866.0,3865.9,5.74703904]
[1753949412086,0.2416776,3866.0,3865.9,8.33375882]
[1753949412378,0.2416776,3866.4,3865.9,5.74703904]
[1753949412695,0.2414832,3866.3,3866.0,0.8818]
[1753949412844,0.2414832,3866.2,3865.9,0.5]
[1753949413048,0.2414832,3866.1,3865.9,0.9298]
[1753949413371,0.4687,3866.3,3865.9,0.9298]
[1753949413539,0.24139734,3866.2,3865.9,0.9298]
[1753949413741,0.24139734,3866.1,3865.9,0.9298]
[1753949413945,0.4687,3866.3,3865.9,0.9298]
[1753949414209,0.24136542,3866.2,3865.9,0.9298]
[1753949414349,0.002,3866.6,3866.1,7.40381895]
[1753949414548,0.24130574,3866.5,3866.4,4.81723904]
[1753949415465,0.24130574,3866.5,3866.4,5.24703904]
[1753949416356,0.002,3866.6,3866.4,5.24703904]
[1753949416584,0.24330574,3866.6,3866.5,0.9298]
[1753949416783,0.002,3866.6,3866.5,0.048]
[1753949417988,0.002,3866.6,3866.5,4.8588]
[1753949418150,0.002,3866.6,3866.5,5.93336511]
[1753949418351,0.002,3866.6,3866.5,5.05156511]
[1753949418654,0.002,3866.6,3866.5,3.977]
[1753949421666,0.002,3866.6,3866.5,3.929]
[1753949422258,0.4707,3866.6,3866.5,3.929]
[1753949425289,0.002,3866.6,3866.5,3.929]
[1753949426398,0.4707,3866.6,3866.5,3.929]
[1753949428993,0.4707,3866.6,3866.2,0.4778]
[1753949429195,0.66932592,3866.5,3866.2,3.928]
[1753949429488,0.002,3866.6,3866.4,4.81723904]
[1753949429796,0.002,3866.6,3866.4,9.62703904]
[1753949431597,0.002,3866.6,3866.4,12.21340816]
[1753949431765,0.002,3866.6,3866.4,11.78360816]
[1753949432097,0.002,3866.6,3866.4,9.62703904]
[1753949432310,0.002,3866.6,3866.4,5.69903904]
[1753949432460,0.002,3866.6,3866.2,2.58649048]
[1753949432658,0.4707,3866.6,3866.3,3.928]
[1753949434009,0.7207,3866.6,3866.3,3.928]
[1753949434191,0.7207,3866.6,3866.3,5.16536607]
[1753949434503,0.252,3866.6,3866.3,8.1814122]
[1753949434663,0.252,3866.6,3866.3,8.6644122]
[1753949435803,0.7033,3866.6,3866.3,8.18140043]
[1753949436478,0.2413511,3866.5,3866.3,8.18140043]
[1753949437011,0.2413511,3866.5,3866.4,1.60682223]
[1753949439015,0.2413511,3866.5,3866.3,4.3576]
[1753949439300,0.2413511,3866.4,3866.3,6.94405216]
[1753949439507,0.2413511,3866.4,3866.3,7.42705216]
[1753949440687,0.2413511,3866.4,3866.3,6.51445216]
[1753949440896,0.2413511,3866.4,3866.3,7.42705216]
[1753949441202,0.2413511,3866.4,3866.3,8.42841563]
[1753949441925,0.2413511,3866.4,3866.3,7.94541563]
[1753949442920,0.24175428,3866.4,3866.3,7.94541563]
[1753949443618,0.24175428,3866.4,3866.3,7.94641563]
[1753949443925,0.24175428,3866.4,3866.3,7.51681563]
[1753949444823,0.24175428,3866.4,3866.3,4.93036347]
[1753949445124,0.24175428,3866.4,3866.3,7.51681563]
[1753949446589,0.24175428,3866.4,3866.3,7.94641563]